Workbook

Sheet Przegląd arkuszy
B1: Przegląd dokumentów
B3: Projekt | C3: OZP | D3: Zakres dokumentu
B4: Komitet Sterujacy | D4: Skład Komitetu Sterującego.
B5: Interesariusze | D5: Interesariusze projketu.
B6: Zespół wdrożeniowy | D6: Zespół odpowiedzialny za wdrożenie projektu.
B7: Cele projektu | D7: Cele strategiczne oraz biznesowe projektu.
B8: Oś czasu projektu | D8: Kamienie milowe w projekcie.
B9: Postęp prac w projekcie | D9: Procentowy postęp prac w poszczególnych etapach projketu.
B10: Plan komunikacji | D10: Macierz określająca kategorie informacji wraz ze wskazaniem osób zainteresowanych otrzymywaniem tych informacji oraz sposobem jej przekazywania w ustalonym cyklu.
B11: Wykonanie bużdetu | D11: Informacja o wykonaniu budżetu.
B12: Monitoring | D12: Odchylenie harmonogramu.
B13: Dziennik | D13: Podsumowanie prac w projekcie w cyklu tygodniowym.
B14: Lista ryzyk | D14: Ryzyka zewnetrzne oraz wewnętrzne zidentyfikowane w projekcie wraz z informacją o reakcji na ryzyko.
B15: Lista zmian | D15: Zgłoszone zmiany oraz rozszerzenia zakresu wraz z informacją o wpływie na czas i koszt.
B16: Zadania do wykonania | D16: Lista zadań do wykonania przez wskazanych Interesariuszy projektu wraz z informacją o statusie zadania.
B17: Zagadnienia projektowe | D17: Opis zdarzeń w projekcie, które wymagają rozwiązania. Mogą wpłynąć na czas, koszt, jakość, zakres, ryzyko.
B18: Aktualizacje | D18: Opis zmian wprowadzonych do kolejnych aktualizacji pliku "Dziennik Projektu"

Sheet Info
B1: Info
B2: KOMITET STERUJĄCY | J2: CEL STRATEGICZNY PROJEKTU
B3: IMIĘ I NAZWISKO | E3: FUNKCJA | J3: Lp.
B4: Jan Kowalski | E4: Członek Zarządu po stronie Zamawiajacego | J4: 1
J5: 2
J6: 3
B8: INTERESARIUSZE | J8: CEL BIZNESOWY PROJEKTU
B9: KOMÓRKA ORGANIZACYJNA / GRUPA ODBIORCÓW | E9: PRZEDSTAWICIELE (IMIĘ I NAZWISKO) | J9: Lp.
B10: Dział Sprzedaży | E10: Jan Nowak | J10: 1
B11: Interesariusz 2 | J11: 2
B12: Interesariusz 3 | J12: 3
B13: Interesariusz 4
B18: ZESPÓŁ WDROŻENIOWY
B19: IMIĘ I NAZWISKO | E19: ROLA
B20: Anna Nowak | E20: Project Manager
E21: Team Leader
E22: Analityk
E23: UX Projektant
E24: Główny Programista PHP
E25: Programista PHP
E26: Programista PHP
E27: Programista PHP
E28: Główny Programista .Net
E29: Programista .Net
E30: Główny Edytor
E31: Edytor

Sheet Oś czasu projektu
B1: Oś czasu projektu
C18: PUNKTY KONTROLNE PROJEKTU
C19: DATA | D19: PUNKT KONTROLNY | E19: POŁOŻENIE | F19: PLAN BAZOWY
C20: 01-04-2016 | D20: Rozpoczęcie projektu | E20: 25 | F20: =1 -> 1
C21: 30-06-2016 | D21: Analiza i projektowanie | E21: -10 | F21: =1 -> 1
C22: 30-07-2016 | D22: Wdrożenie HTML | E22: 10 | F22: =1 -> 1
C23: 30-10-2016 | D23: Etap I | F23: =1 -> 1
C24: 30-09-2016 | D24: Implementacja | E24: -10 | F24: =1 -> 1
C25: 10-10-2016 | D25: Integracja | E25: 10 | F25: =1 -> 1
C26: 30-10-2016 | D26: Testy i stabilizacja | E26: -10 | F26: =1 -> 1
C27: 31-12-2016 | D27: Etap II | F27: =1 -> 1
C28: 30-11-2016 | D28: Implementacja | E28: 10 | F28: =1 -> 1
C29: 30-12-2016 | D29: Testy i stabilizacja | E29: -10 | F29: =1 -> 1
C30: 31-12-2016 | D30: Wdrożenie | E30: 25 | F30: =1 -> 1

Sheet Postęp etapów
B1: Postęp prac w projekcie
B3: Projekt | D3: Postęp | E3: Rozpoczęcie | F3: Zakończenie | G3: Uwagi
B4: Projekt [nazwa projektu] | C4: 0.2 | D4: =REPT("|",Projekty5[[ ]]*100) -> |||||||||||||||||||| | F4: ='Oś czasu projektu'!C20 -> 01-04-2016
B5: ='Oś czasu projektu'!D21 -> Analiza i projektowanie | C5: 1 | D5: =REPT("|",Projekty5[[ ]]*100) -> |||||||||||||||||||||||||||||||||||||||||||||||||||||||||||||||||||||||||||||||||||||||||||||||||||| | F5: ='Oś czasu projektu'!C21 -> 30-06-2016
B6: ='Oś czasu projektu'!D22 -> Wdrożenie HTML | C6: 1 | D6: =REPT("|",Projekty5[[ ]]*100) -> |||||||||||||||||||||||||||||||||||||||||||||||||||||||||||||||||||||||||||||||||||||||||||||||||||| | F6: ='Oś czasu projektu'!C22 -> 30-07-2016
B7: ='Oś czasu projektu'!D23 -> Etap I | C7: 0.4 | D7: =REPT("|",Projekty5[[ ]]*100) -> |||||||||||||||||||||||||||||||||||||||| | F7: ='Oś czasu projektu'!C23 -> 30-10-2016
B8: ='Oś czasu projektu'!D24 -> Implementacja | C8: 0.5 | D8: =REPT("|",Projekty5[[ ]]*100) -> |||||||||||||||||||||||||||||||||||||||||||||||||| | F8: ='Oś czasu projektu'!C24 -> 30-09-2016
B9: ='Oś czasu projektu'!D25 -> Integracja | C9: 0.3 | D9: =REPT("|",Projekty5[[ ]]*100) -> |||||||||||||||||||||||||||||| | F9: ='Oś czasu projektu'!C25 -> 10-10-2016
B10: ='Oś czasu projektu'!D26 -> Testy i stabilizacja | C10: 0 | D10: =REPT("|",Projekty5[[ ]]*100) ->  | F10: ='Oś czasu projektu'!C26 -> 30-10-2016
B11: ='Oś czasu projektu'!D27 -> Etap II | C11: 0 | D11: =REPT("|",Projekty5[[ ]]*100) ->  | F11: ='Oś czasu projektu'!C27 -> 31-12-2016
B12: ='Oś czasu projektu'!D28 -> Implementacja | C12: 0 | D12: =REPT("|",Projekty5[[ ]]*100) ->  | F12: ='Oś czasu projektu'!C28 -> 30-11-2016
B13: ='Oś czasu projektu'!D29 -> Testy i stabilizacja | C13: 0 | D13: =REPT("|",Projekty5[[ ]]*100) ->  | F13: ='Oś czasu projektu'!C29 -> 30-12-2016
B14: ='Oś czasu projektu'!D30 -> Wdrożenie | C14: 0 | D14: =REPT("|",Projekty5[[ ]]*100) ->  | F14: ='Oś czasu projektu'!C30 -> 31-12-2016
D15: =REPT("|",Projekty5[[ ]]*100) ->  | F15: ='Oś czasu projektu'!C31 -> 00:00:00

Sheet Plan komunikacji
B1: Plan Komunikacji
D2: Interesariusze
B3: Rodzaj informacji | C3: PM | D3: Dział Sprzedaży | E3: Interesariusz 2 | F3: Interesariusz 3 | G3: Interesariusz 4 | H3: Dokument | I3: OZP | J3: Cykl | K3: Kanał komunikacji | L3: Uwagi
B4: Zagadnienia techniczne zewnętrzne | C4: X | G4: X | H4: Dziennik Projektu | I4: PM | J4: Tygodniowy | K4: Dziennik Projektu udostępniony na witrynie projektowej | N4: Dzienny
B5: Zagadnienia techniczne wewnętrzne | C5: X | E5: X | N5: Tygodniowy
B6: Zwiększenie / zmiana zakresu | C6: X | D6: X | E6: X | F6: X | G6: X | H6: Lista Zmian | N6: 2-tygodniowy
B7: Zasoby | C7: X | D7: X | N7: Miesięczny
B8: Wykonanie budżetu | C8: X | D8: X | G8: X | H8: Dziennik Projektu
B9: Harmonogram | C9: X | D9: X | E9: X | F9: X | G9: X | H9: Dziennik Projektu / Plik MPP
B10: Ryzyka zewnętrzne | C10: X | D10: X | F10: X | G10: X | H10: Lista Ryzyk
B11: Ryzyka wewnętrzne | C11: X | D11: X | E11: X | F11: X | H11: Lista Ryzyk
B12: Postęp prac | C12: X | D12: X | E12: X | F12: X | G12: X | H12: Dziennik Projektu / Plik MPP

Sheet Wykonanie budżetu
B1: Wykonanie budżetu
B3: Tytuł faktury | C3: Data | D3: Kwota faktury | E3: Faktury nar. | F3: Budżet projektu | G3: Budżet proj. nar. | H3: Koszt zasobów | I3: Koszt zasobów nar. | J3: Rentowność
B4: Faktura 1 | C4: 30-04-2016 | D4: 10000 | E4: =Projekty537[[#This Row],[Kwota faktury]] -> 10000 | F4: =Projekty537[[#This Row],[Kwota faktury]]*0.7 -> 7000 | G4: =Projekty537[[#This Row],[Budżet projektu]] -> 7000 | H4: 9000 | I4: =Projekty537[[#This Row],[Koszt zasobów]] -> 9000 | J4: =(Projekty537[[#This Row],[Budżet proj. nar.]]-Projekty537[[#This Row],[Koszt zasobów nar.]])/Projekty537[[#This Row],[Budżet proj. nar.]] -> -0.2857142857
B5: Faktura 2 | C5: 31-05-2016 | D5: 5000 | E5: =Projekty537[[#This Row],[Kwota faktury]]+E4 -> 15000 | F5: =Projekty537[[#This Row],[Kwota faktury]]*0.7 -> 3500 | G5: =Projekty537[[#This Row],[Budżet projektu]]+G4 -> 10500 | H5: 4500 | I5: =Projekty537[[#This Row],[Koszt zasobów]]+I4 -> 13500 | J5: =(Projekty537[[#This Row],[Budżet proj. nar.]]-Projekty537[[#This Row],[Koszt zasobów nar.]])/Projekty537[[#This Row],[Budżet proj. nar.]] -> -0.2857142857
B6: Faktura 3 | C6: 30-06-2016 | D6: 5000 | E6: =Projekty537[[#This Row],[Kwota faktury]]+E5 -> 20000 | F6: =Projekty537[[#This Row],[Kwota faktury]]*0.7 -> 3500 | G6: =Projekty537[[#This Row],[Budżet projektu]]+G5 -> 14000 | H6: 4000 | I6: =Projekty537[[#This Row],[Koszt zasobów]]+I5 -> 17500 | J6: =(Projekty537[[#This Row],[Budżet projektu]]-Projekty537[[#This Row],[Koszt zasobów]])/Projekty537[[#This Row],[Budżet projektu]] -> -0.1428571429
B7: Faktura 4 | C7: 31-07-2016 | D7: 20000 | E7: =Projekty537[[#This Row],[Kwota faktury]]+E6 -> 40000 | F7: =Projekty537[[#This Row],[Kwota faktury]]*0.7 -> 14000 | G7: =Projekty537[[#This Row],[Budżet projektu]]+G6 -> 28000 | H7: 10000 | I7: =Projekty537[[#This Row],[Koszt zasobów]]+I6 -> 27500 | J7: =(Projekty537[[#This Row],[Budżet projektu]]-Projekty537[[#This Row],[Koszt zasobów]])/Projekty537[[#This Row],[Budżet projektu]] -> 0.2857142857
B8: Faktura 5 | C8: 31-08-2016 | E8: =Projekty537[[#This Row],[Kwota faktury]]+E7 -> 40000 | F8: =Projekty537[[#This Row],[Kwota faktury]]*0.7 -> 0 | G8: =Projekty537[[#This Row],[Budżet projektu]]+G7 -> 28000 | I8: =Projekty537[[#This Row],[Koszt zasobów]]+I7 -> 27500 | J8: =(Projekty537[[#This Row],[Budżet projektu]]-Projekty537[[#This Row],[Koszt zasobów]])/Projekty537[[#This Row],[Budżet projektu]] -> 
B9: Faktura 6 | C9: 30-09-2016 | E9: =Projekty537[[#This Row],[Kwota faktury]]+E8 -> 40000 | F9: =Projekty537[[#This Row],[Kwota faktury]]*0.7 -> 0 | G9: =Projekty537[[#This Row],[Budżet projektu]]+G8 -> 28000 | I9: =Projekty537[[#This Row],[Koszt zasobów]]+I8 -> 27500 | J9: =(Projekty537[[#This Row],[Budżet projektu]]-Projekty537[[#This Row],[Koszt zasobów]])/Projekty537[[#This Row],[Budżet projektu]] -> 
B10: Faktura 7 | C10: 30-10-2016 | E10: =Projekty537[[#This Row],[Kwota faktury]]+E9 -> 40000 | F10: =Projekty537[[#This Row],[Kwota faktury]]*0.7 -> 0 | G10: =Projekty537[[#This Row],[Budżet projektu]]+G9 -> 28000 | I10: =Projekty537[[#This Row],[Koszt zasobów]]+I9 -> 27500 | J10: =(Projekty537[[#This Row],[Budżet projektu]]-Projekty537[[#This Row],[Koszt zasobów]])/Projekty537[[#This Row],[Budżet projektu]] -> 
B11: Faktura 8 | C11: 30-11-2016 | E11: =E10+Projekty537[[#This Row],[Kwota faktury]] -> 40000 | F11: =Projekty537[[#This Row],[Kwota faktury]]*0.7 -> 0 | G11: =Projekty537[[#This Row],[Budżet projektu]]+G10 -> 28000 | I11: =Projekty537[[#This Row],[Koszt zasobów]] -> 0 | J11: =(Projekty537[[#This Row],[Budżet projektu]]-Projekty537[[#This Row],[Koszt zasobów]])/Projekty537[[#This Row],[Budżet projektu]] -> 
B12: Faktura 9 | C12: 31-12-2016 | E12: =Projekty537[[#This Row],[Kwota faktury]]+E10 -> 40000 | F12: =Projekty537[[#This Row],[Kwota faktury]]*0.7 -> 0 | G12: =Projekty537[[#This Row],[Budżet projektu]]+G11 -> 28000 | I12: =Projekty537[[#This Row],[Koszt zasobów]]+I10 -> 27500 | J12: =(Projekty537[[#This Row],[Budżet projektu]]-Projekty537[[#This Row],[Koszt zasobów]])/Projekty537[[#This Row],[Budżet projektu]] -> 
B13: Total: | D13: =SUBTOTAL(109,D5:D12) -> 30000 | F13: =SUBTOTAL(109,F5:F12) -> 21000 | H13: =SUBTOTAL(109,H5:H12) -> 18500 | J13: =(Projekty537[[#This Row],[Budżet projektu]]-Projekty537[[#This Row],[Koszt zasobów]])/Projekty537[[#This Row],[Budżet projektu]] -> 0.119047619
F14: =Projekty537[[#This Row],[Kwota faktury]]*0.7 -> 0
F15: =Projekty537[[#This Row],[Kwota faktury]]*0.7 -> 0
F16: =Projekty537[[#This Row],[Kwota faktury]]*0.7 -> 0
F17: =Projekty537[[#This Row],[Kwota faktury]]*0.7 -> 0
F18: =Projekty537[[#This Row],[Kwota faktury]]*0.7 -> 0

Sheet Monitoring
C1: Monitoring
B3: Project | C3: Zadanie | D3: Link do zadania | E3: Wykonawca | F3: Est. czas | G3: Zaraport. czas | H3: Postęp | I3: Est. czas. na podst. Postępu | J3: Odchylenie | L3: LEGENDA
C4: Zadanie 1 | E4: Analityk biznesowy | F4: 50 | G4: 20 | H4: 0.25 | I4: =IF(_xlfn.NUMBERVALUE(H4)=0,_xlfn.NUMBERVALUE(G4)+_xlfn.NUMBERVALUE(F4),IF(_xlfn.NUMBERVALUE(G4)=0,_xlfn.NUMBERVALUE(F4),_xlfn.NUMBERVALUE(G4)) /H4) -> 80 | J4: =IF(_xlfn.NUMBERVALUE(F4)=0,0,(_xlfn.NUMBERVALUE(I4)-_xlfn.NUMBERVALUE(F4))/F4) -> 0.6 | L4: KOLUMNA | M4: WYJAŚNIENIE
B5: x | C5: Zadanie 2 | E5: Programista 1 | F5: 20 | G5: 6 | H5: 0.3 | I5: =IF(_xlfn.NUMBERVALUE(H5)=0,_xlfn.NUMBERVALUE(G5)+_xlfn.NUMBERVALUE(F5),IF(_xlfn.NUMBERVALUE(G5)=0,_xlfn.NUMBERVALUE(F5),_xlfn.NUMBERVALUE(G5)) /H5) -> 20 | J5: =(I5-F5)/F5 -> 0 | L5: Zadanie | M5: Nazwa zadania z WBS (WBS - struktura podziału pracy)
B6: x | C6: Zadanie 3 | E6: Programista 2 | F6: 40 | G6: 6 | H6: 0.05 | I6: 120 | J6: =(I6-F6)/F6 -> 2 | L6: Link do zadania | M6: Odnośnik do zadania (jeśli istnieje)
C7: Zadanie 4 | E7: Programista 1 | F7: 80 | G7: 90 | H7: 0.9 | I7: 100 | J7: =IF(_xlfn.NUMBERVALUE(F7)=0,0,(_xlfn.NUMBERVALUE(I7)-_xlfn.NUMBERVALUE(F7))/F7) -> 0.25 | L7: Wykonawca | M7: Osoba realizująca zadanie
B8: x | C8: Zadanie 5 | E8: Programista 2 | F8: 10 | G8: 8 | H8: 1 | I8: 8 | J8: -0.2 | L8: Est. czas | M8: Planowany czas wykonania zadania
B9: x | C9: Zadanie 6 | E9: Programista 3 | F9: 50 | G9: 55 | H9: 1 | I9: 55 | J9: 0.1 | L9: Zarapor. czas | M9: Dotychczas zaraportowany czas na wykonania zadania
C10: Zadanie 7 | E10: Programista 2 | F10: 20 | G10: 25 | H10: 0.6 | I10: 41.66666667 | J10: 1.083333333 | L10: Postęp | M10: Postęp procentowy zadania
B11: x | C11: Zadanie 8 | E11: Programista 3 | F11: 30 | G11: 55 | H11: 0.9 | I11: 61.11111111 | J11: 1.037037037 | L11: Est. czas. na podst. postępu | M11: Estymowany łączny czas na wykonanie zadania na podstawie dotychczas zaraportowanego czasu i postępu (Zaraport. czas / Postęp)
B12: x | C12: Zadanie 9 | E12: Programista 2 | F12: 50 | G12: 6 | H12: 0.3 | I12: 20 | J12: -0.6 | L12: Odchylenie | M12: Odchylenie powyżej / poniżej wartości planowanej (Est. czas)
B13: x | C13: Zadanie 10 | E13: Tester | F13: 100 | G13: 30 | H13: 0.2 | I13: 150 | J13: 0.5
B14: x | I14: =IF(_xlfn.NUMBERVALUE(H14)=0,_xlfn.NUMBERVALUE(G14)+_xlfn.NUMBERVALUE(F14),IF(_xlfn.NUMBERVALUE(G14)=0,_xlfn.NUMBERVALUE(F14),_xlfn.NUMBERVALUE(G14)) /H14) -> 0 | J14: =IF(_xlfn.NUMBERVALUE(F14)=0,0,(_xlfn.NUMBERVALUE(I14)-_xlfn.NUMBERVALUE(F14))/F14) -> 0 | L14: REGUŁY
B15: x | I15: =IF(_xlfn.NUMBERVALUE(H15)=0,_xlfn.NUMBERVALUE(G15)+_xlfn.NUMBERVALUE(F15),IF(_xlfn.NUMBERVALUE(G15)=0,_xlfn.NUMBERVALUE(F15),_xlfn.NUMBERVALUE(G15)) /H15) -> 0 | J15: =IF(_xlfn.NUMBERVALUE(F15)=0,0,(_xlfn.NUMBERVALUE(I15)-_xlfn.NUMBERVALUE(F15))/F15) -> 0 | L15: KOLOR | M15: WYJAŚNIENIE
B16: x | I16: 0 | J16: 0 | L16: Zaraport. czas | M16: jeśli dotychczas zaraportowany na zadanie czas jest mniejszy lub równy wartości estymowanej (Est. czas)
I17: 0 | J17: 0 | L17: Zaraport. Czas | M17: jeśli dotychczas zaraportowany na zadanie czas jest więszy niż wartość estymowana (Est. czas) oraz jest mniejszy niż 130% tej wartości
I18: 0 | J18: 0 | L18: Zaraport. czas | M18: jeśli dotychczas zaraportowany na zadanie czas jest więszy lub równy 130% wartości estymowanej (Est. czas)
B19: x | I19: 0 | J19: 0
B20: x | I20: 0 | J20: 0 | L20: Est. czas | M20: jeśli estymowany łączny czas na wykonanie zadania jest mniejszy lub równy wartości estymowanej (Est. czas)
B21: x | I21: 0 | J21: 0 | L21: Est. Czas | M21: jeśli estymowany łączny czas na wykonanie zadania jest więszy niż wartość estymowana (Est. czas) oraz jest mniejszy niż 130% tej wartości
B22: x | I22: 0 | J22: 0 | L22: Est. czas | M22: jeśli estymowany łączny czas na wykonanie zadania jest większy lub równy 130% wartości estymowanej (Est. czas)
B23: x | I23: 0 | J23: 0
B24: x | I24: 0 | J24: 0
B25: x | I25: 0 | J25: 0
B26: x | I26: 0 | J26: 0
I27: 0 | J27: 0
I28: 0 | J28: 0
B29: x | I29: 0 | J29: 0
B30: x | I30: 0 | J30: 0
B31: x | I31: 0 | J31: 0
B32: x | I32: 0 | J32: 0
B33: x | I33: 0 | J33: 0
I34: 0 | J34: 0
B35: x | I35: 0 | J35: 0
B36: x | I36: 0 | J36: 0
I37: 0 | J37: 0
B38: x | I38: 0 | J38: 0
B39: x | I39: 0 | J39: 0
B40: x | I40: 0 | J40: 0
I41: 0 | J41: 0
B42: x | I42: 0 | J42: 0
B43: x | I43: 0 | J43: 0
B44: x | I44: 0 | J44: 0
B45: x | I45: 0 | J45: 0
B46: x | I46: 0 | J46: 0
B47: x | I47: 0 | J47: 0
B48: x | I48: 0 | J48: 0
B49: x | I49: 0 | J49: 0
B50: x | I50: 0 | J50: 0
B51: x | I51: 0 | J51: 0
B52: x | I52: 0 | J52: 0
I53: 0 | J53: 0
I54: 0 | J54: 0
I55: 0 | J55: 0
B56: x | I56: 0 | J56: 0
I57: 0 | J57: 0
B58: x | I58: 0 | J58: 0
B59: x | I59: 0 | J59: 0
B60: x | I60: 0 | J60: 0
B61: x | I61: 0 | J61: 0
B62: x | I62: 0 | J62: 0
B63: x | I63: 0 | J63: 0
B64: x | I64: 0 | J64: 0
B65: x | I65: 0 | J65: 0
I66: 0 | J66: 0
B67: x | I67: 0 | J67: 0
B68: x | I68: 0 | J68: 0
B69: x | I69: 0 | J69: 0
I70: 0 | J70: 0
B71: x | I71: 0 | J71: 0
I72: 0 | J72: 0
B73: x | I73: 0 | J73: 0
B74: x | I74: 0 | J74: 0
B75: x | I75: 0 | J75: 0
I76: 0 | J76: 0
B77: x | I77: 0 | J77: 0
I78: 0 | J78: 0
I79: =IF(_xlfn.NUMBERVALUE(H79)=0,_xlfn.NUMBERVALUE(G79)+_xlfn.NUMBERVALUE(F79),IF(_xlfn.NUMBERVALUE(G79)=0,_xlfn.NUMBERVALUE(F79),_xlfn.NUMBERVALUE(G79)) /H79) -> 0 | J79: =IF(_xlfn.NUMBERVALUE(F79)=0,0,(_xlfn.NUMBERVALUE(I79)-_xlfn.NUMBERVALUE(F79))/F79) -> 0
B80: x | I80: 0 | J80: 0
B81: x | I81: 0 | J81: 0
B82: x | I82: 0 | J82: 0
B83: x | I83: 0 | J83: 0
I84: 0 | J84: 0
I85: 0 | J85: 0
B86: x | I86: 0 | J86: 0
B87: x | I87: 0 | J87: 0
B88: x | I88: 0 | J88: 0
B89: x | I89: 0 | J89: 0
B90: x | I90: 0 | J90: 0
B91: x | I91: 0 | J91: 0
B92: x | I92: 0 | J92: 0
B93: x | I93: 0 | J93: 0
I94: 0 | J94: 0
B95: x | I95: 0 | J95: 0
I96: 0 | J96: 0
B97: x | I97: 0 | J97: 0
B98: x | I98: 0 | J98: 0
I99: 0 | J99: 0
B100: x | I100: 0 | J100: 0

Sheet Dziennik
B1: Dziennik projektu
B2: Dzień startu - 1 tydzień: | D2: =DATEVALUE("2016-03-28") -> 2016-03-28
B3: Tydzień | C3: Miesiąc | D3: Data | E3: Rodzaj informacji | F3: Opis
B4: 1 | C4: =D4 -> 2016-04-04 | D4: =DATE(YEAR($D$2+B4*7),MONTH($D$2+B4*7),DAY($D$2+B4*7)) -> 2016-04-04 | E4: Postęp projektu | F4: Wartość liczbowa wyrażona w procentach.
E5: Status projektu | F5: Opis słowny postępu w projekcie.
E6: Nadchodzące terminy | F6: Należy uzupęłnić, jeśli zostały zaplanowane np. terminy odbioru etapów, spotkania, daty podjęcia określonych działań. Format: data - wydarzenie
E7: Zasoby | F7: Sytuacja dotycząca zasobów zarówno ludzkich, jak i sprzętowych (niedobory, nadmierne alokacje itp.)
E8: Zmiany | F8: Należy uzupełnić, jeśli zostały zgłoszone.
E9: Ryzyka i reakcje | F9: Należy uzupełnić, jeśli zostały zgłoszone.
E10: Testy | F10: Jeśli się rozpoczęły, należy opisać ich status.
E11: Współpraca z podwykonawcami | F11: Opis słowny dotyczący współpracy (relacji, wywiązaywania się ze zeobowiązań itp.)
B12: 2 | C12: =D12 -> 2016-04-11 | D12: =DATE(YEAR($D$2+B12*7),MONTH($D$2+B12*7),DAY($D$2+B12*7)) -> 2016-04-11 | E12: Postęp
E13: Status projektu
E14: Nadchodzące terminy
E15: Zasoby
E16: Zmiany
E17: Ryzyka i reakcje
E18: Współpraca z UC4
B19: 3 | C19: 2016-04-18 | D19: =DATE(YEAR($D$2+B19*7),MONTH($D$2+B19*7),DAY($D$2+B19*7)) -> 2016-04-18 | E19: Postęp
E20: Status projektu
E21: Nadchodzące terminy
E22: Zasoby
E23: Zmiany
E24: Ryzyka i reakcje
E25: Testy
E26: Współpraca z podwykonawcami
B27: 4 | C27: 2016-04-25 | D27: =DATE(YEAR($D$2+B27*7),MONTH($D$2+B27*7),DAY($D$2+B27*7)) -> 2016-04-25 | E27: Postęp
E28: Status projektu
E29: Nadchodzące terminy
E30: Zasoby
E31: Zmiany
E32: Ryzyka i reakcje
E33: Testy
E34: Współpraca z podwykonawcami
B35: 5 | C35: 2016-05-02 | D35: =DATE(YEAR($D$2+B35*7),MONTH($D$2+B35*7),DAY($D$2+B35*7)) -> 2016-05-02 | E35: Postęp
E36: Status projektu
E37: Nadchodzące terminy
E38: Zasoby
E39: Zmiany
E40: Ryzyka i reakcje
E41: Testy
E42: Współpraca z podwykonawcami
B43: 6 | C43: 2016-05-09 | D43: =DATE(YEAR($D$2+B43*7),MONTH($D$2+B43*7),DAY($D$2+B43*7)) -> 2016-05-09 | E43: Postęp
E44: Status projektu
E45: Nadchodzące terminy
E46: Zasoby
E47: Zmiany
E48: Ryzyka i reakcje
E49: Testy
E50: Współpraca z podwykonawcami
B51: 7 | C51: =D51 -> 2016-05-16 | D51: =DATE(YEAR($D$2+B51*7),MONTH($D$2+B51*7),DAY($D$2+B51*7)) -> 2016-05-16 | E51: Postęp
E52: Status projektu
E53: Nadchodzące terminy
E54: Zasoby
E55: Zmiany
E56: Ryzyka i reakcje
E57: Testy
E58: Współpraca z podwykonawcami
B59: 8 | C59: =D59 -> 2016-05-23 | D59: 2016-05-23 | E59: Postęp
E60: Status projektu
E61: Nadchodzące terminy
E62: Zasoby
E63: Zmiany
E64: Ryzyka i reakcje
E65: Testy
E66: Współpraca z podwykonawcami
B67: 9 | C67: =D67 -> 2016-05-30 | D67: 2016-05-30 | E67: Postęp
E68: Status projektu
E69: Nadchodzące terminy
E70: Zasoby
E71: Zmiany
E72: Ryzyka i reakcje
E73: Testy
E74: Współpraca z podwykonawcami
B75: 10 | C75: =D75 -> 2016-06-06 | D75: 2016-06-06 | E75: Postęp
E76: Status projektu
E77: Nadchodzące terminy
E78: Zasoby
E79: Zmiany
E80: Ryzyka i reakcje
E81: Testy
E82: Współpraca z podwykonawcami
B83: 11 | C83: =D83 -> 2016-06-13 | D83: =DATE(YEAR($D$2+B83*7),MONTH($D$2+B83*7),DAY($D$2+B83*7)) -> 2016-06-13 | E83: Postęp
E84: Status projektu
E85: Nadchodzące terminy
E86: Zasoby
E87: Zmiany
E88: Ryzyka i reakcje
E89: Testy
E90: Współpraca z podwykonawcami
B91: 12 | C91: =D91 -> 2016-06-20 | D91: =DATE(YEAR($D$2+B91*7),MONTH($D$2+B91*7),DAY($D$2+B91*7)) -> 2016-06-20 | E91: Postęp
E92: Status projektu
E93: Nadchodzące terminy
E94: Zasoby
E95: Zmiany
E96: Ryzyka i reakcje
E97: Testy
E98: Współpraca z podwykonawcami
B99: 13 | C99: =D99 -> 2016-06-27 | D99: =DATE(YEAR($D$2+B99*7),MONTH($D$2+B99*7),DAY($D$2+B99*7)) -> 2016-06-27 | E99: Postęp
E100: Status projektu
E101: Nadchodzące terminy
E102: Zasoby
E103: Zmiany
E104: Ryzyka i reakcje
E105: Testy
E106: Współpraca z podwykonawcami
B107: 14 | C107: =D107 -> 2016-07-04 | D107: =DATE(YEAR($D$2+B107*7),MONTH($D$2+B107*7),DAY($D$2+B107*7)) -> 2016-07-04 | E107: Postęp
E108: Status projektu
E109: Nadchodzące terminy
E110: Zasoby
E111: Zmiany
E112: Ryzyka i reakcje
E113: Testy
E114: Współpraca z podwykonawcami
B115: 15 | C115: =D115 -> 2016-07-11 | D115: =DATE(YEAR($D$2+B115*7),MONTH($D$2+B115*7),DAY($D$2+B115*7)) -> 2016-07-11 | E115: Postęp
E116: Status projektu
E117: Nadchodzące terminy
E118: Zasoby
E119: Zmiany
E120: Ryzyka i reakcje
E121: Testy
E122: Współpraca z podwykonawcami

Sheet Lista ryzyk
B1: Lista ryzyk
B3: Ryzyko | C3: Opis | D3: Autor zgłoszenia | E3: Data zgłoszenia | F3: Wpływ na projekt | G3: Prawdopodobieństwo wystąpienia | H3: Ocena ryzyka | I3: Reakcja na ryzyko | J3: Data zamknięcia | K3: Uwagi
B4: Ryzyko 1 | C4: Lorem ipsum dolor sit amet enim. Etiam ullamcorper. Suspendisse a pellentesque dui, non felis. | D4: Jan Kowalski | E4: 42464 | F4: niski | G4: niskie | H4: A | I4: akceptacja | J4: 42471 | K4: Lorem ipsum dolor sit amet enim. Etiam ullamcorper. Suspendisse a pellentesque dui, non felis. | M4: Wpływ na projekt | N4: Wysoki | O4: C | P4: D | Q4: E
H5: B | N5: Średni | O5: B | P5: C | Q5: D
H6: C | N6: Niski | O6: A | P6: B | Q6: C
H7: D | O7: Niskie | P7: Średnie | Q7: Wysokie
H8: E | O8: Prawdopodobieństwo wystąpienia
N10: A
M11: unikanie | N11: B
M12: redukowanie | N12: C
M13: przeniesienie | N13: D
M14: współdzielenie | N14: E
M15: akceptacja
M18: niski
M19: średni
M20: wysoki
M23: niskie
M24: średnie
M25: wysokie

Sheet Lista zmian
B1: Lista zmian
B3: Zmiana | C3: Opis | D3: Autor zmiany | E3: Data zgłoszenia | F3: Wpływ na projekt | G3: Wpływ na harmonogram | H3: Wpływ na budżet | I3: Status zmiany | J3: Data zamknięcia | K3: Uwagi
B4: Zmiana 1 | C4: Lorem ipsum dolor sit amet enim. Etiam ullamcorper. Suspendisse a pellentesque dui, non felis. | D4: Jan Kowalski | E4: 2016-04-04 | F4: niski | G4: 1 dzień | H4: 1000 | I4: odrzucona | J4: 2016-04-11 | K4: Lorem ipsum dolor sit amet enim. Etiam ullamcorper. Suspendisse a pellentesque dui, non felis. | M4: nowa
M5: nierozpoczęta
M6: w toku
M7: odrzucona
M8: wykonana
M11: niski
M12: średni
M13: wysoki

Sheet Zadania do wykonania
B1: Lista zadań do wykonania w projekcie
B3: Zadanie | C3: Opis | D3: Data zgłoszenia | E3: Priorytet | F3: Właściciel zadania | G3: Termin wykonania | H3: Status zadania | I3: Data zamknięcia | J3: Uwagi
B4: Zadanie 1 | C4: Lorem ipsum dolor sit amet enim. Etiam ullamcorper. Suspendisse a pellentesque dui, non felis. | D4: 2016-04-04 | E4: wysoki | F4: Adam Nowak | G4: 2016-04-11 | H4: w toku | J4: Lorem ipsum dolor sit amet enim. Etiam ullamcorper. Suspendisse a pellentesque dui, non felis.
L5: nowe
L6: przyjęte
L7: w toku
L8: odrzucone
L9: wykonane
L11: niski
L12: średni
L13: wysoki

Sheet Zagadnienia projektowe
B1: Zagadnienia projektowe
B3: Zagadnienie | C3: Opis | D3: Typ zagadnienia | E3: Autor zgłoszenia | F3: Data zgłoszenia | G3: Wpływ na projekt | H3: Status zagadnienia | I3: Data zamknięcia | J3: Uwagi
B4: Zagadnienie 1 | C4: Lorem ipsum dolor sit amet enim. Etiam ullamcorper. Suspendisse a pellentesque dui, non felis. | D4: wsparcie | E4: Jan Kowalski | F4: 2016-04-04 | G4: średni | H4: wykonane | I4: 2016-04-11 | J4: Lorem ipsum dolor sit amet enim. Etiam ullamcorper. Suspendisse a pellentesque dui, non felis. | L4: nowe
L5: przyjęte
L6: w toku
L7: odrzucone
L8: wykonane
L11: wsparcie
L12: odstępstwo
L13: problem / obawa
L14: inne
L17: niski
L18: średni
L19: wysoki

Sheet Aktualizacje
B1: Aktualizacje Dziennika Projektu
B3: Wersja | C3: Data aktualizacji | D3: Zmiany w najnowszej wersji
B4: 1.0 | C4: 2016-04-04 | D4: Opublikowanie wersji 1.0 Dziennika Projektu | F4: nowe
B5: 1.1 | C5: 2016-05-04 | D5: 1. Poprawione zostały formuły w arkuszu "Monitoring" - kolumny I oraz J są "odporne" na wartość 0 2. Do arkusza "Dziennik projektu" została wprwadzona funkcja automatycznego dodawania kolejnych tygodni 3. W arkuszach: "Lista ryzyk", "Lista zmian", "Zadania do wykonania", "Zagadnienia projektowe" zostały dodane nowe kolumny 4. Nazwa arkusza "Przegląd dokumentów" została zmieniona na "Przegląd arkuszy" 5. Wprowadzone zostały drobne zmiany wizualne (kolorystyczne, szerokości kolumn etc.) 6. Do wybranych nagłówków kolumn dodane zostały komentarze 7. Do wybranych arkuszy dodane zostały przykładowe dane 8. Dodany został arkusz "Aktualizacje" | F5: przyjęte
F6: w toku
F7: odrzucone
F8: wykonane
F11: wsparcie
F12: odstępstwo
F13: problem / obawa
F14: inne
F17: niski
F18: średni
F19: wysoki
